[Event "SVK Amateur-ch 2020"]
[Site "Topolcany"]
[Date "2020.07.12"]
[Round "4.19"]
[White "Meszarosova, Eva"]
[Black "Pejko, Otomar"]
[Result "1/2-1/2"]
[ECO "C41"]
[WhiteElo "1976"]
[BlackElo "2138"]
[Annotator "ChessBase"]
[PlyCount "115"]
[EventDate "2020.07.10"]
[EventType "swiss"]
[EventCountry "SVK"]
[SourceTitle "playchess.com"]
[Source "ChessBase"]
[SourceQuality "1"]
[TimeControl "3600+30"]

1. e4 {[%emt 0:00:00]} e5 {[%emt 0:00:54]} 2. Nf3 {[%emt 0:00:00]} d6 {[%emt 0:00:05]} 3. d4 {[%emt 0:00:00]} exd4 {[%emt 0:00:08]} 4. Nxd4 {[%emt 0:00:00]} g6 {[%emt 0:00:15]} 5. Nc3 {[%emt 0:00:49]} Bg7 {[%emt 0:00:07]} 6. Bc4 {[%emt 0:00:26]} Nc6 {[%emt 0:02:40]} 7. Be3 {[%emt 0:01:24]} Nf6 {[%emt 0:02:25]} 8. f3 {[%emt 0:00:22]} O-O {[%emt 0:01:49]} 9. Qd2 {[%emt 0:00:28]} a6 {[%emt 0:05:26]} 10. Nxc6 {[%emt 0:05:10]} bxc6 {[%emt 0:01:30]} 11. O-O-O Be6 {[%emt 0:02:54]} 12. Bb3 {[%emt 0:02:59]} Nd7 {[%emt 0:12:55]} 13. Bh6 {[%emt 0:02:10]} Qf6 {[%emt 0:01:15]} 14. Bxg7 {[%emt 0:02:48]} Qxg7 {[%emt 0:00:21]} 15. g4 {[%emt 0:00:45]} Ne5 {[%emt 0:02:32]} 16. Qe2 {[%emt 0:02:57]} Qh6+ {[%emt 0:00:08]} 17. Kb1 {[%emt 0:00:18]} Qf4 {[%emt 0:00:02]} 18. Rdf1 {[%emt 0:01:28]} Rfb8 {[%emt 0:05:21]} 19. h4 {[%emt 0:03:57]} Rb4 {[%emt 0:00:38]} 20. Qh2 {[%emt 0:02:56]} Qxh2 {[%emt 0:09:26]} 21. Rxh2 {[%emt 0:00:13]} Bc4 {[%emt 0:00:25]} 22. Bxc4 {[%emt 0:04:22]} Nxc4 {[%emt 0:01:32]} 23. b3 {[%emt 0:01:15]} Ne5 {[%emt 0:00:02]} 24. h5 {[%emt 0:00:28]} Rab8 {[%emt 0:03:10]} 25. g5 {[%emt 0:01:58]} Nd7 {[%emt 0:01:54]} 26. f4 {[%emt 0:03:06]} Nc5 {[%emt 0:00:51]} 27. hxg6 {[%emt 0:00:48]} hxg6 {[%emt 0:00:09]} 28. Rfh1 {[%emt 0:01:12]} Kf8 {[%emt 0:00:26]} 29. a3 {[%emt 0:03:11]} R4b7 {[%emt 0:00:33]} 30. f5 {[%emt 0:00:47]} Ke7 {[%emt 0:08:16]} 31. fxg6 {[%emt 0:05:50]} fxg6 {[%emt 0:00:10]} 32. Rh7+ {[%emt 0:00:11]} Ke6 {[%emt 0:00:01]} 33. Rf1 {[%emt 0:01:22]} Ke5 {[%emt 0:01:21]} 34. Ne2 {[%emt 0:06:03]} Re8 {[%emt 0:02:01]} 35. Rff7 {[%emt 0:03:42]} Nxe4 {[%emt 0:03:04]} 36. Re7+ {[%emt 0:00:36]} Rxe7 {[%emt 0:00:01]} 37. Rxe7+ {[%emt 0:00:10]} Kf5 {[%emt 0:00:04]} 38. Nd4+ {[%emt 0:01:13]} Kf4 {[%emt 0:00:01]} 39. Rf7+ {[%emt 0:05:09]} Kxg5 {[%emt 0:00:52]} 40. Ne6+ {[%emt 0:00:49]} Kh5 {[%emt 0:01:56]} 41. Nd8 {[%emt 0:02:49]} Rb6 {[%emt 0:00:16]} 42. Rxc7 {[%emt 0:00:13]} c5 {[%emt 0:00:01]} 43. Ne6 {[%emt 0:01:48]} g5 {[%emt 0:00:19]} 44. Re7 {[%emt 0:01:04]} d5 {[%emt 0:00:45]} 45. Nc7 {[%emt 0:00:51]} Nf6 {[%emt 0:01:06]} 46. Kc1 {[%emt 0:01:04]} Kg4 {[%emt 0:01:00]} 47. Kd1 {[%emt 0:00:41]} Kf5 {[%emt 0:00:06]} 48. Ke2 {[%emt 0:01:27]} g4 {[%emt 0:00:09]} 49. Kf2 {[%emt 0:00:43]} d4 {[%emt 0:00:08]} 50. Ne8 {[%emt 0:01:37]} d3 {[%emt 0:01:23]} 51. cxd3 {[%emt 0:00:32]} Rxb3 {[%emt 0:00:02]} 52. Rf7 {[%emt 0:00:08]} Ke6 {[%emt 0:02:28]} 53. Rxf6+ {[%emt 0:00:36]} Ke7 {[%emt 0:00:01]} 54. Rxa6 {[%emt 0:00:29]} Kxe8 {[%emt 0:00:02]} 55. Kg3 {[%emt 0:00:21]} Rxd3+ {[%emt 0:00:11]} 56. Kxg4 {[%emt 0:00:11]} c4 {[%emt 0:00:13]} 57. Rc6 {[%emt 0:00:21]} Rxa3 {[%emt 0:00:10]} 58. Rxc4 {[%emt 0:00:05]} 1/2-1/2

[Event "SVK Amateur-ch 2020"]
[Site "Topolcany"]
[Date "2020.07.12"]
[Round "4.20"]
[White "Strachan, Jan"]
[Black "Trangos, Miroslav"]
[Result "1-0"]
[ECO "C00"]
[WhiteElo "2130"]
[BlackElo "1971"]
[Annotator "ChessBase"]
[PlyCount "81"]
[EventDate "2020.07.10"]
[EventType "swiss"]
[EventCountry "SVK"]
[SourceTitle "playchess.com"]
[Source "ChessBase"]
[SourceQuality "1"]
[TimeControl "3600+30"]

1. e4 {[%emt 0:00:00]} e6 {[%emt 0:00:00]} 2. d3 {[%emt 0:00:02]} d5 {[%emt 0:00:00]} 3. Nd2 {[%emt 0:00:11]} b6 {[%emt 0:02:29]} 4. Ngf3 {[%emt 0:01:55]} Bb7 {[%emt 0:00:18]} 5. g3 {[%emt 0:00:12]} Nd7 {[%emt 0:04:49]} 6. Bg2 {[%emt 0:00:20]} dxe4 {[%emt 0:01:10]} 7. Nxe4 {[%emt 0:01:02]} Ngf6 {[%emt 0:01:51]} 8. Nfg5 {[%emt 0:01:27]} Nc5 {[%emt 0:06:27]} 9. O-O {[%emt 0:02:15]} Ncxe4 {[%emt 0:02:55]} 10. Nxe4 {[%emt 0:00:15]} Nxe4 {[%emt 0:00:18]} 11. dxe4 {[%emt 0:00:16]} Qxd1 {[%emt 0:01:37]} 12. Rxd1 {[%emt 0:00:42]} e5 {[%emt 0:03:14]} 13. Be3 {[%emt 0:01:23]} Rd8 {[%emt 0:04:07]} 14. a4 {[%emt 0:05:34]} Rxd1+ {[%emt 0:00:49]} 15. Rxd1 {[%emt 0:00:11]} Bd6 {[%emt 0:01:34]} 16. a5 {[%emt 0:06:07]} Ke7 {[%emt 0:07:33]} 17. Ra1 {[%emt 0:01:33]} Ra8 {[%emt 0:02:58]} 18. c3 {[%emt 0:04:24]} Bc5 {[%emt 0:01:56]} 19. Bxc5+ {[%emt 0:06:30]} bxc5 {[%emt 0:00:02]} 20. a6 {[%emt 0:01:52]} Bc6 {[%emt 0:00:41]} 21. Ra5 {[%emt 0:00:28]} Rb8 {[%emt 0:00:40]} 22. Rxc5 {[%emt 0:00:18]} Kd6 {[%emt 0:00:23]} 23. b4 {[%emt 0:00:11]} Rb5 {[%emt 0:00:20]} 24. Rxb5 {[%emt 0:02:39]} Bxb5 {[%emt 0:00:02]} 25. Bf1 {[%emt 0:00:14]} c6 {[%emt 0:03:53]} 26. c4 {[%emt 0:00:59]} Ba4 {[%emt 0:00:02]} 27. c5+ {[%emt 0:00:17]} Ke7 {[%emt 0:03:23]} 28. f3 {[%emt 0:02:34]} Bb5 {[%emt 0:01:37]} 29. Bxb5 {[%emt 0:00:34]} cxb5 {[%emt 0:00:03]} 30. Kg2 {[%emt 0:00:23]} Ke6 {[%emt 0:00:37]} 31. Kh3 {[%emt 0:00:38]} h6 {[%emt 0:01:58]} 32. Kh4 {[%emt 0:00:59]} g6 {[%emt 0:00:11]} 33. Kg4 {[%emt 0:04:03]} f6 {[%emt 0:01:21]} 34. Kh4 {[%emt 0:02:48]} Ke7 {[%emt 0:01:26]} 35. f4 {[%emt 0:02:52]} Ke6 {[%emt 0:00:55]} 36. fxe5 {[%emt 0:03:32]} Kxe5 {[%emt 0:01:22]} 37. g4 {[%emt 0:00:19]} Ke6 {[%emt 0:01:05]} 38. Kg3 {[%emt 0:00:30]} Ke5 {[%emt 0:01:37]} 39. Kf3 {[%emt 0:00:19]} g5 {[%emt 0:00:18]} 40. Ke3 {[%emt 0:00:16]} Ke6 {[%emt 0:00:15]} 41. Kd4 1-0

[Event "SVK Amateur-ch 2020"]
[Site "Topolcany"]
[Date "2020.07.12"]
[Round "4.21"]
[White "Nikanova, Ekaterina"]
[Black "Ladnak, Marek"]
[Result "1/2-1/2"]
[ECO "B19"]
[WhiteElo "2116"]
[BlackElo "1882"]
[Annotator "ChessBase"]
[PlyCount "121"]
[EventDate "2020.07.10"]
[EventType "swiss"]
[EventCountry "SVK"]
[SourceTitle "playchess.com"]
[Source "ChessBase"]
[SourceQuality "1"]
[TimeControl "3600+30"]

1. e4 {[%emt 0:00:00]} c6 {[%emt 0:00:00]} 2. d4 {[%emt 0:00:00]} d5 {[%emt 0:00:00]} 3. Nc3 {[%emt 0:00:00]} dxe4 {[%emt 0:00:00]} 4. Nxe4 {[%emt 0:00:00]} Bf5 {[%emt 0:00:02]} 5. Ng3 {[%emt 0:00:01]} Bg6 {[%emt 0:00:08]} 6. h4 {[%emt 0:00:03]} h6 {[%emt 0:00:10]} 7. Nf3 {[%emt 0:00:03]} Nd7 {[%emt 0:00:18]} 8. h5 {[%emt 0:00:04]} Bh7 {[%emt 0:00:09]} 9. Bd3 {[%emt 0:00:02]} Bxd3 {[%emt 0:00:09]} 10. Qxd3 {[%emt 0:00:02]} Qc7 {[%emt 0:01:18]} 11. Bd2 {[%emt 0:02:14]} e6 {[%emt 0:00:34]} 12. Ne4 {[%emt 0:04:14]} Be7 {[%emt 0:01:47]} 13. O-O-O {[%emt 0:02:56]} Ngf6 {[%emt 0:02:51]} 14. Kb1 {[%emt 0:01:30]} O-O-O {[%emt 0:03:16]} 15. g3 {[%emt 0:09:20]} c5 {[%emt 0:10:13]} 16. Bf4 {[%emt 0:08:23]} Qc6 {[%emt 0:00:55]} 17. Nxf6 {[%emt 0:03:49]} Bxf6 {[%emt 0:00:49]} 18. d5 {[%emt 0:04:59]} exd5 {[%emt 0:13:30]} 19. Qxd5 {[%emt 0:00:18]} Ne5 {[%emt 0:00:14]} 20. Qxc6+ {[%emt 0:00:07]} Nxc6 {[%emt 0:00:06]} 21. c3 {[%emt 0:03:52]} Rxd1+ {[%emt 0:03:22]} 22. Rxd1 {[%emt 0:00:02]} Rd8 {[%emt 0:00:09]} 23. Rxd8+ {[%emt 0:04:54]} Kxd8 {[%emt 0:00:14]} 24. Kc2 {[%emt 0:00:47]} Kd7 {[%emt 0:01:37]} 25. Kd3 {[%emt 0:01:17]} b5 {[%emt 0:02:46]} 26. Ke4 {[%emt 0:06:55]} Ke6 {[%emt 0:01:27]} 27. Be3 {[%emt 0:04:07]} Be7 {[%emt 0:09:36]} 28. g4 {[%emt 0:00:44]} c4 {[%emt 0:07:14]} 29. Nd4+ {[%emt 0:01:41]} Nxd4 {[%emt 0:03:04]} 30. Bxd4 {[%emt 0:00:03]} g6 {[%emt 0:00:19]} 31. hxg6 {[%emt 0:07:28]} fxg6 {[%emt 0:00:12]} 32. Bxa7 {[%emt 0:00:03]} h5 {[%emt 0:01:23]} 33. gxh5 {[%emt 0:00:05]} gxh5 {[%emt 0:00:07]} 34. f4 {[%emt 0:01:15]} Bd6 {[%emt 0:02:17]} 35. b3 {[%emt 0:01:28]} h4 {[%emt 0:01:48]} 36. bxc4 {[%emt 0:00:29]} bxc4 {[%emt 0:00:05]} 37. a4 {[%emt 0:01:43]} h3 {[%emt 0:01:40]} 38. Bg1 {[%emt 0:00:05]} Bc5 {[%emt 0:01:04]} 39. Bh2 {[%emt 0:00:09]} Bb6 {[%emt 0:00:07]} 40. f5+ {[%emt 0:01:46]} Kf6 {[%emt 0:00:24]} 41. Be5+ {[%emt 0:00:38]} Kg5 {[%emt 0:00:44]} 42. f6 {[%emt 0:00:37]} h2 {[%emt 0:00:52]} 43. Bxh2 {[%emt 0:00:07]} Kxf6 {[%emt 0:00:04]} 44. Kd5 {[%emt 0:01:06]} Ba5 {[%emt 0:00:04]} 45. Kxc4 {[%emt 0:00:17]} Ke6 {[%emt 0:00:09]} 46. Kd4 {[%emt 0:01:01]} Bxc3+ {[%emt 0:00:21]} 47. Kxc3 {[%emt 0:00:04]} Kd5 {[%emt 0:00:05]} 48. Kb4 {[%emt 0:02:08]} Kc6 {[%emt 0:00:06]} 49. Ka5 {[%emt 0:00:39]} Kb7 {[%emt 0:00:16]} 50. Bg1 {[%emt 0:00:20]} Kb8 {[%emt 0:00:34]} 51. Kb6 {[%emt 0:00:16]} Ka8 {[%emt 0:00:14]} 52. a5 {[%emt 0:00:10]} Kb8 {[%emt 0:00:05]} 53. Ka6 {[%emt 0:00:05]} Ka8 {[%emt 0:00:18]} 54. Kb6 {[%emt 0:00:21]} Kb8 {[%emt 0:00:05]} 55. Bh2+ {[%emt 0:00:10]} Ka8 {[%emt 0:00:05]} 56. Kc7 {[%emt 0:00:08]} Ka7 {[%emt 0:00:15]} 57. Kc8 {[%emt 0:00:21]} Ka8 {[%emt 0:00:55]} 58. Bc7 {[%emt 0:00:12]} Ka7 {[%emt 0:00:13]} 59. Bb6+ {[%emt 0:00:09]} Ka8 {[%emt 0:00:09]} 60. Kd7 {[%emt 0:00:07]} Kb7 {[%emt 0:00:23]} 61. Kd6 {[%emt 0:00:06]} 1/2-1/2

[Event "SVK Amateur-ch 2020"]
[Site "Topolcany"]
[Date "2020.07.12"]
[Round "4.22"]
[White "Slaba, Andrea"]
[Black "Bojda, Lubomir"]
[Result "1-0"]
[ECO "E91"]
[WhiteElo "1969"]
[BlackElo "2110"]
[Annotator "ChessBase"]
[PlyCount "97"]
[EventDate "2020.07.10"]
[EventType "swiss"]
[EventCountry "SVK"]
[SourceTitle "playchess.com"]
[Source "ChessBase"]
[SourceQuality "1"]
[TimeControl "3600+30"]

1. Nf3 {[%emt 0:00:00]} d6 {[%emt 0:00:00]} 2. d4 {[%emt 0:00:00]} Nf6 {[%emt 0:00:00]} 3. c4 {[%emt 0:00:06]} g6 {[%emt 0:00:42]} 4. Nc3 {[%emt 0:00:12]} Bg7 {[%emt 0:00:15]} 5. e4 {[%emt 0:00:46]} O-O {[%emt 0:00:07]} 6. Be2 {[%emt 0:00:12]} Na6 {[%emt 0:03:24]} 7. Bg5 {[%emt 0:03:37]} Qe8 {[%emt 0:02:03]} 8. O-O {[%emt 0:09:05]} e5 {[%emt 0:00:20]} 9. dxe5 {[%emt 0:07:25]} dxe5 {[%emt 0:02:25]} 10. Ne1 {[%emt 0:05:31]} Be6 {[%emt 0:11:11]} 11. Nd5 {[%emt 0:06:16]} Nxe4 {[%emt 0:02:20]} 12. Be7 {[%emt 0:00:17]} c6 {[%emt 0:06:22]} 13. Bxf8 {[%emt 0:00:20]} Qxf8 {[%emt 0:00:14]} 14. Ne3 {[%emt 0:00:47]} Rd8 {[%emt 0:00:23]} 15. Qc2 {[%emt 0:01:29]} Nd2 {[%emt 0:00:16]} 16. Nd3 {[%emt 0:02:46]} Nxf1 {[%emt 0:00:45]} 17. Bxf1 {[%emt 0:00:37]} Nb4 {[%emt 0:01:50]} 18. Nxb4 {[%emt 0:01:12]} Qxb4 {[%emt 0:00:06]} 19. a3 {[%emt 0:00:10]} Qb6 {[%emt 0:01:21]} 20. b4 {[%emt 0:04:07]} Rd4 {[%emt 0:02:27]} 21. c5 {[%emt 0:03:40]} Qd8 {[%emt 0:00:20]} 22. Nc4 {[%emt 0:01:33]} b5 {[%emt 0:07:09]} 23. cxb6 {[%emt 0:02:30]} axb6 {[%emt 0:00:53]} 24. Ne3 {[%emt 0:00:31]} Rd6 {[%emt 0:08:19]} 25. a4 {[%emt 0:03:14]} e4 {[%emt 0:05:54]} 26. Rc1 {[%emt 0:02:52]} f5 {[%emt 0:02:52]} 27. Bc4 {[%emt 0:04:02]} Kh8 {[%emt 0:03:29]} 28. Bxe6 {[%emt 0:02:27]} Rxe6 {[%emt 0:00:07]} 29. Nc4 {[%emt 0:01:59]} c5 {[%emt 0:01:40]} 30. bxc5 {[%emt 0:01:00]} bxc5 {[%emt 0:00:10]} 31. g3 {[%emt 0:00:56]} Bd4 {[%emt 0:00:40]} 32. a5 {[%emt 0:00:51]} f4 {[%emt 0:00:57]} 33. gxf4 {[%emt 0:00:53]} Qh4 {[%emt 0:00:40]} 34. Ne3 {[%emt 0:02:03]} Qxf4 {[%emt 0:00:40]} 35. Ng2 {[%emt 0:00:13]} Qf6 {[%emt 0:02:22]} 36. Rb1 {[%emt 0:00:52]} h5 {[%emt 0:01:26]} 37. Rb8+ {[%emt 0:00:17]} Kh7 {[%emt 0:00:14]} 38. Rb7+ {[%emt 0:00:16]} Kh6 {[%emt 0:00:12]} 39. Qc1+ {[%emt 0:01:04]} g5 {[%emt 0:00:13]} 40. h4 {[%emt 0:01:53]} Bxf2+ {[%emt 0:02:48]} 41. Kh1 {[%emt 0:00:08]} e3 {[%emt 0:00:35]} 42. Qc2 {[%emt 0:00:46]} Qg6 {[%emt 0:01:14]} 43. hxg5+ {[%emt 0:01:07]} Kxg5 {[%emt 0:00:15]} 44. Qxc5+ {[%emt 0:00:34]} Kh6 {[%emt 0:01:34]} 45. Qf8+ {[%emt 0:00:16]} Kg5 46. Qc5+ Qf5 47. Rg7+ Rg6 48. Qe7+ Qf6 49. Qe5+ 1-0

[Event "SVK Amateur-ch 2020"]
[Site "Topolcany"]
[Date "2020.07.12"]
[Round "4.23"]
[White "Pniaczek, Marek"]
[Black "Plasek, Zdenek"]
[Result "1-0"]
[ECO "B41"]
[WhiteElo "2102"]
[BlackElo "1933"]
[Annotator "ChessBase"]
[PlyCount "59"]
[EventDate "2020.07.10"]
[EventType "swiss"]
[EventCountry "SVK"]
[SourceTitle "playchess.com"]
[Source "ChessBase"]
[SourceQuality "1"]
[TimeControl "3600+30"]

1. e4 {[%emt 0:00:00]} c5 {[%emt 0:00:00]} 2. Nf3 {[%emt 0:00:00]} e6 {[%emt 0:00:00]} 3. d4 {[%emt 0:00:00]} cxd4 {[%emt 0:00:08]} 4. Nxd4 {[%emt 0:00:00]} a6 {[%emt 0:00:05]} 5. c4 {[%emt 0:00:00]} Nf6 {[%emt 0:00:12]} 6. Nc3 {[%emt 0:00:00]} Qc7 {[%emt 0:00:23]} 7. Be3 {[%emt 0:00:00]} b6 {[%emt 0:01:20]} 8. Be2 {[%emt 0:02:54]} Bb7 {[%emt 0:00:08]} 9. f3 {[%emt 0:00:08]} d6 {[%emt 0:01:27]} 10. O-O {[%emt 0:00:25]} Be7 {[%emt 0:00:03]} 11. a4 {[%emt 0:03:47]} O-O {[%emt 0:01:16]} 12. Qd2 {[%emt 0:01:12]} Rc8 {[%emt 0:03:10]} 13. Rfc1 {[%emt 0:01:27]} Nbd7 {[%emt 0:00:17]} 14. a5 {[%emt 0:01:21]} bxa5 {[%emt 0:02:58]} 15. Nb3 {[%emt 0:02:01]} a4 {[%emt 0:06:40]} 16. Nxa4 {[%emt 0:03:00]} Nc5 {[%emt 0:00:18]} 17. Na5 {[%emt 0:07:53]} Bc6 {[%emt 0:00:52]} 18. Nc3 {[%emt 0:04:57]} Rab8 {[%emt 0:07:53]} 19. Rcb1 {[%emt 0:03:33]} Ba8 {[%emt 0:05:37]} 20. b4 {[%emt 0:00:52]} Ncd7 {[%emt 0:00:45]} 21. Na4 {[%emt 0:04:15]} Re8 {[%emt 0:15:39]} 22. b5 {[%emt 0:03:43]} Qc8 {[%emt 0:15:04]} 23. Ba7 {[%emt 0:04:04]} Bd8 {[%emt 0:01:45]} 24. Bxb8 {[%emt 0:03:36]} Nxb8 {[%emt 0:03:09]} 25. b6 {[%emt 0:00:30]} Bb7 {[%emt 0:02:12]} 26. Qxd6 {[%emt 0:00:23]} Re7 {[%emt 0:00:37]} 27. Nc5 {[%emt 0:02:13]} Ne8 {[%emt 0:00:22]} 28. Qd4 {[%emt 0:00:27]} Nd7 {[%emt 0:00:56]} 29. Ncxb7 {[%emt 0:00:47]} Bxb6 {[%emt 0:00:03]} 30. Rxb6 {[%emt 0:00:21]} 1-0

[Event "SVK Amateur-ch 2020"]
[Site "Topolcany"]
[Date "2020.07.12"]
[Round "4.25"]
[White "Balazs, Ladislav"]
[Black "Salgovic, Simon"]
[Result "1/2-1/2"]
[ECO "B01"]
[WhiteElo "2122"]
[BlackElo "1877"]
[Annotator "ChessBase"]
[PlyCount "87"]
[EventDate "2020.07.10"]
[EventType "swiss"]
[EventCountry "SVK"]
[SourceTitle "playchess.com"]
[Source "ChessBase"]
[SourceQuality "1"]
[TimeControl "3600+30"]

1. e4 {[%emt 0:42:20]} d5 {[%emt 0:00:00]} 2. d4 {[%emt 0:00:05]} dxe4 {[%emt 0:00:00]} 3. Nc3 {[%emt 0:00:01]} Nf6 {[%emt 0:00:10]} 4. f3 {[%emt 0:00:01]} exf3 {[%emt 0:02:41]} 5. Qxf3 {[%emt 0:01:59]} c6 {[%emt 0:03:26]} 6. Bg5 {[%emt 0:00:07]} e6 {[%emt 0:02:17]} 7. O-O-O {[%emt 0:00:05]} Be7 {[%emt 0:00:18]} 8. Kb1 {[%emt 0:00:51]} Nd5 {[%emt 0:01:11]} 9. Bxe7 {[%emt 0:00:13]} Nxe7 {[%emt 0:05:55]} 10. Bd3 {[%emt 0:00:24]} Nd7 {[%emt 0:01:29]} 11. Ne4 {[%emt 0:02:38]} Qc7 {[%emt 0:01:54]} 12. Rf1 {[%emt 0:00:38]} Rf8 {[%emt 0:01:49]} 13. c4 {[%emt 0:01:02]} f5 {[%emt 0:09:00]} 14. Ng5 {[%emt 0:00:27]} Nf6 {[%emt 0:00:19]} 15. Re1 {[%emt 0:01:21]} h6 {[%emt 0:05:00]} 16. Nxe6 {[%emt 0:02:12]} Bxe6 {[%emt 0:00:07]} 17. Rxe6 {[%emt 0:00:04]} O-O-O {[%emt 0:01:17]} 18. Bxf5 {[%emt 0:01:04]} Nxf5 {[%emt 0:01:25]} 19. Qxf5 {[%emt 0:00:03]} Kb8 {[%emt 0:04:37]} 20. Nf3 {[%emt 0:00:23]} Nd5 {[%emt 0:03:19]} 21. Qg4 {[%emt 0:02:29]} Nf4 {[%emt 0:01:04]} 22. Re3 {[%emt 0:00:45]} g5 {[%emt 0:03:25]} 23. Rhe1 {[%emt 0:00:53]} Qf7 {[%emt 0:03:14]} 24. c5 {[%emt 0:08:08]} Qh7+ {[%emt 0:11:12]} 25. Ka1 {[%emt 0:00:19]} Nd5 {[%emt 0:01:32]} 26. Rb3 {[%emt 0:00:32]} Rde8 {[%emt 0:01:40]} 27. Qg3+ {[%emt 0:00:01]} Ka8 {[%emt 0:00:49]} 28. Ne5 {[%emt 0:01:29]} Rf4 {[%emt 0:00:24]} 29. Nf3 {[%emt 0:02:24]} Ree4 {[%emt 0:00:57]} 30. h3 {[%emt 0:00:57]} Qe7 {[%emt 0:01:01]} 31. Rxe4 {[%emt 0:00:29]} Qxe4 {[%emt 0:00:36]} 32. Qf2 {[%emt 0:00:22]} h5 {[%emt 0:01:42]} 33. Qd2 {[%emt 0:00:30]} g4 {[%emt 0:01:10]} 34. hxg4 {[%emt 0:00:02]} hxg4 {[%emt 0:00:11]} 35. Nh2 {[%emt 0:00:11]} Qxd4 {[%emt 0:01:33]} 36. Qc1 {[%emt 0:01:35]} Rf2 {[%emt 0:00:38]} 37. Qe1 {[%emt 0:00:29]} Rf8 {[%emt 0:00:31]} 38. a3 {[%emt 0:00:44]} Qf4 {[%emt 0:00:32]} 39. g3 {[%emt 0:00:20]} Qc4 {[%emt 0:00:19]} 40. Qd1 {[%emt 0:00:34]} Rf2 {[%emt 0:00:39]} 41. Re3 {[%emt 0:00:32]} a6 {[%emt 0:00:22]} 42. Re8+ {[%emt 0:00:02]} Ka7 {[%emt 0:00:07]} 43. Rh8 {[%emt 0:00:23]} Nc3 {[%emt 0:00:30]} 44. Ra8+ {[%emt 0:00:05]} 1/2-1/2

[Event "SVK Amateur-ch 2020"]
[Site "Topolcany"]
[Date "2020.07.12"]
[Round "4.26"]
[White "Lach, Piotr"]
[Black "Dzwierzynski, Bartosz"]
[Result "1/2-1/2"]
[ECO "B50"]
[WhiteElo "2086"]
[BlackElo "1869"]
[Annotator "ChessBase"]
[PlyCount "36"]
[EventDate "2020.07.10"]
[EventType "swiss"]
[EventCountry "SVK"]
[SourceTitle "playchess.com"]
[Source "ChessBase"]
[SourceQuality "1"]
[TimeControl "3600+30"]

1. e4 {[%emt 0:00:00]} c5 {[%emt 0:00:00]} 2. Nf3 {[%emt 0:00:00]} d6 {[%emt 0:00:00]} 3. c3 {[%emt 0:00:00]} Nc6 {[%emt 0:01:13]} 4. d4 {[%emt 0:02:46]} Nf6 {[%emt 0:05:38]} 5. d5 {[%emt 0:07:46]} Nb8 {[%emt 0:00:27]} 6. Be2 {[%emt 0:02:44]} g6 {[%emt 0:00:51]} 7. O-O {[%emt 0:02:20]} Bg7 {[%emt 0:00:19]} 8. Bb5+ {[%emt 0:10:16]} Bd7 {[%emt 0:02:03]} 9. Bxd7+ {[%emt 0:00:38]} Nbxd7 {[%emt 0:00:08]} 10. Qe2 {[%emt 0:03:33]} O-O {[%emt 0:01:00]} 11. a4 {[%emt 0:02:08]} Rb8 {[%emt 0:03:18]} 12. h3 {[%emt 0:02:56]} Re8 {[%emt 0:07:03]} 13. Bf4 {[%emt 0:02:57]} Nh5 {[%emt 0:01:17]} 14. Bh2 {[%emt 0:00:28]} Bh6 {[%emt 0:00:34]} 15. Na3 {[%emt 0:06:58]} Nf4 {[%emt 0:05:20]} 16. Bxf4 {[%emt 0:00:59]} Bxf4 {[%emt 0:00:53]} 17. g3 {[%emt 0:01:45]} Bh6 {[%emt 0:00:25]} 18. Nc4 {[%emt 0:00:16]} Nb6 {[%emt 0:04:00]} 1/2-1/2

[Event "SVK Amateur-ch 2020"]
[Site "Topolcany"]
[Date "2020.07.12"]
[Round "4.27"]
[White "Franko, Ondrej"]
[Black "Lecky, Juraj"]
[Result "1-0"]
[ECO "B21"]
[WhiteElo "1952"]
[BlackElo "2083"]
[Annotator "ChessBase"]
[PlyCount "91"]
[EventDate "2020.07.10"]
[EventType "swiss"]
[EventCountry "SVK"]
[SourceTitle "playchess.com"]
[Source "ChessBase"]
[SourceQuality "1"]
[TimeControl "3600+30"]

1. e4 {[%emt 0:00:00]} c5 {[%emt 0:00:00]} 2. f4 {[%emt 0:00:00]} d5 {[%emt 0:00:00]} 3. exd5 {[%emt 0:00:00]} Qxd5 {[%emt 0:00:00]} 4. Nc3 {[%emt 0:00:00]} Qd8 {[%emt 0:00:00]} 5. Nf3 {[%emt 0:00:23]} Nf6 {[%emt 0:01:20]} 6. Bc4 {[%emt 0:02:03]} Nc6 {[%emt 0:00:38]} 7. d3 {[%emt 0:00:29]} e6 {[%emt 0:02:33]} 8. O-O {[%emt 0:01:04]} Be7 {[%emt 0:00:13]} 9. Kh1 {[%emt 0:01:22]} O-O {[%emt 0:01:20]} 10. Bb3 {[%emt 0:03:31]} b6 {[%emt 0:00:38]} 11. Qe1 {[%emt 0:01:03]} Nd4 {[%emt 0:05:05]} 12. Ne5 {[%emt 0:05:29]} Bb7 {[%emt 0:02:09]} 13. Be3 {[%emt 0:01:23]} a5 {[%emt 0:17:26]} 14. Bxd4 {[%emt 0:11:10]} cxd4 {[%emt 0:13:29]} 15. Nxf7 {[%emt 0:13:22]} Rxf7 {[%emt 0:06:16]} 16. Qxe6 {[%emt 0:00:28]} dxc3 {[%emt 0:05:34]} 17. Qxf7+ {[%emt 0:00:40]} Kh8 {[%emt 0:00:06]} 18. Rae1 {[%emt 0:01:18]} Ng8 {[%emt 0:02:45]} 19. Qxg8+ {[%emt 0:07:17]} Qxg8 {[%emt 0:00:12]} 20. Bxg8 {[%emt 0:00:03]} Bh4 {[%emt 0:00:19]} 21. Bc4 {[%emt 0:00:16]} Bxe1 {[%emt 0:00:32]} 22. Rxe1 {[%emt 0:00:04]} cxb2 {[%emt 0:00:07]} 23. Kg1 {[%emt 0:00:13]} a4 {[%emt 0:01:53]} 24. a3 {[%emt 0:00:10]} Bc6 {[%emt 0:06:06]} 25. Rb1 {[%emt 0:03:18]} b5 {[%emt 0:01:16]} 26. Be6 {[%emt 0:00:51]} Re8 {[%emt 0:00:26]} 27. Bg4 {[%emt 0:01:05]} b4 {[%emt 0:00:24]} 28. Rxb2 {[%emt 0:00:38]} bxa3 {[%emt 0:00:11]} 29. Ra2 {[%emt 0:00:32]} Re1+ {[%emt 0:01:11]} 30. Kf2 {[%emt 0:00:05]} Rc1 {[%emt 0:00:05]} 31. Bf3 {[%emt 0:00:42]} Bd7 {[%emt 0:00:16]} 32. Ke3 {[%emt 0:01:54]} Be6 33. Rxa3 {[%emt 0:00:10]} Rxc2 {[%emt 0:02:46]} 34. Rxa4 {[%emt 0:00:08]} g6 {[%emt 0:00:16]} 35. Ra7 {[%emt 0:00:59]} Bf5 {[%emt 0:00:25]} 36. g4 {[%emt 0:03:33]} Be6 {[%emt 0:00:49]} 37. h4 {[%emt 0:03:01]} Rh2 {[%emt 0:00:42]} 38. h5 {[%emt 0:00:09]} gxh5 {[%emt 0:00:04]} 39. gxh5 {[%emt 0:00:07]} Rh3 {[%emt 0:00:19]} 40. Ke4 {[%emt 0:00:54]} Bd5+ {[%emt 0:01:22]} 41. Kxd5 {[%emt 0:00:06]} Rxf3 {[%emt 0:00:02]} 42. Ke4 {[%emt 0:00:15]} Rh3 {[%emt 0:00:04]} 43. d4 {[%emt 0:02:34]} Rxh5 {[%emt 0:00:13]} 44. d5 {[%emt 0:00:03]} Kg8 {[%emt 0:00:06]} 45. d6 {[%emt 0:00:28]} Kf8 {[%emt 0:00:11]} 46. Ra8+ {[%emt 0:00:17]} 1-0